Cogmind - Beta 16.1 @@@ ROGUE MODE // 2026.02.01 @ 17:07:33 Player: JuustuToug Result: Destroyed by H-88 Terminator with Heavy Machine Gun Performance ------------- Evolutions (8) 4000 Regions Visited (22) 4400 Robots Destroyed (339) 1695 Value Destroyed (15922) 15922 Prototype IDs (84) 1680 Alien Tech Used (5) 1000 Bonus (7293) 7293 TOTAL SCORE: 35990 Bonus ------- High Alert Combat Kills 941 Follower Combat Kills 1779 Hunted by Unchained 500 Network Hubs Disabled 200 Registered with UFD 300 Met Optimus in HQ 500 Met Data Miner 300 Built Enhanced Grunts 300 A7 Reached Mainframe 300 Met R17 at Cetus 500 Met R17 at Research 2000 Scanned by Researcher 500 Friendly Fire -827 Cogmind --------- Core Integrity 0/1450 Matter 247/300 Energy 684/690 System Corruption 29% Temperature Cool (0) +ITN Movement Immobile (Siege) Location -2/Section 7 Parts ------- > --- POWER (3) -------- Quantum Reactor Light Quantum Reactor Improved Quantum Reactor > --- PROPULSION (5) --- High-density Centrium Heavy Treads High-density Centrium Heavy Treads High-density Centrium Leg > --- UTILITY (13) ----- Advanced Heat Sink Advanced Heat Sink Experimental Cooling System High-capacity Storage Unit Long-range Sensor Array (fused) Advanced Signal Interpreter Advanced Transmission Jammer Graphene Brace > --- WEAPON (2) ------- Nova Cannon Enhanced Nova Cannon > --- INVENTORY (20) --- Light Quantum Reactor Light Quantum Reactor Matter Drive High-density Centrium Heavy Treads High-density Centrium Leg Advanced Heat Sink Advanced Heat Sink Advanced Coolant Injector Advanced Transmission Jammer Phase Redirector Advanced Point Defense System Compact HERF Cannon Nova Cannon Nova Cannon Enhanced Nova Cannon Null Cannon Micro-nuke Launcher Fusion Bomb Launcher Advanced Remote Datajack Peak State ------------ > --- POWER ------------ Quantum Reactor Quantum Reactor Quantum Reactor > --- PROPULSION ------- Biometal Medium Treads High-density Centrium Heavy Treads High-density Centrium Heavy Treads > --- UTILITY ---------- Advanced Heat Sink Advanced Heat Sink Advanced Heat Sink Advanced Heat Sink High-capacity Storage Unit Advanced Signal Interpreter Experimental Targeting Computer Advanced Phase Shifter Phase Armor Graphene Brace AEGIS Remote Shield Experimental System Shield > --- WEAPON ----------- Enhanced Nova Cannon Null Cannon > --- INVENTORY -------- Light Quantum Reactor Light Quantum Reactor Light Quantum Reactor Matter Drive High-density Centrium Heavy Treads Myomer Leg High-density Centrium Leg High-density Centrium Leg Long-range Sensor Array Advanced Transmission Jammer Advanced Transmission Jammer Phase Redirector Advanced Point Defense System Compact HERF Cannon Nova Cannon Nova Cannon Nova Cannon Micro-nuke Launcher Advanced Remote Datajack [Rating: 208] Favorites ----------- Power Heavy Ion Engine Engine Heavy Ion Engine Power Core Neutrino Core Reactor Light Quantum Reactor Propulsion Light Treads Treads Light Treads Leg Flexi-carbon Leg Utility Advanced Signal Interpreter Device Advanced Heat Sink Storage High-capacity Storage Unit Processor Advanced Signal Interpreter Hackware Experimental System Shield Protection Centrium Light Armor Plating Artifact Phase Armor Weapon Nova Cannon Energy Gun Improved Medium Laser Energy Cannon Nova Cannon Ballistic Gun Railgun Launcher Precision Rocket Launcher Special Weapon Advanced Remote Datajack Impact Weapon Makeshift Hammer Slashing Weapon Companion Sword Piercing Weapon Spear Build | -11 -10 -10 -9 -9 -9 -9 -6 -6 -6 -6 -5 -5 -5 -5 -5 -5 -4 -3 -3 -2 -2 -2 ------- Run | Yrd Mat Min Mat Sto Rec Scr Fac Low Low Dat Pro Fac Ext Cet Arc Hub Fac Res Tes Res Qua Sec Slots Evolved 16 | . . . 2 . . . 6 . . . . 2 . . . . 2 2 . 2 . . Power 2 | . . . . . . . 1 . . . . . . . . . . . . 1 . . Propulsion 3 | . . . 1 . . . 1 . . . . . . . . . 1 . . . . . Utility 11 | . . . 1 . . . 4 . . . . 2 . . . . 1 2 . 1 . . Weapon . | . . . . . . . . . . . . . . . . . . . . . . . Parts Attached 334 | 7 6 7 19 13 5 3 47 1 6 . 2 22 10 10 3 5 9 71 31 35 9 13 Power 62 | 1 1 2 2 1 . . 8 . 2 . . 7 1 1 . . 2 12 4 11 2 5 Engine 18 | 1 1 1 2 1 . . 7 . . . . 5 . . . . . . . . . . Core 9 | . . 1 . . . . 1 . 2 . . 2 1 . . . 1 1 . . . . Reactor 35 | . . . . . . . . . . . . . . 1 . . 1 11 4 11 2 5 Propulsion 83 | 2 . 2 4 6 2 1 14 . 2 . 1 5 3 5 . 1 2 19 4 7 3 . Treads 32 | 2 . 2 4 6 2 1 10 . . . . . . 1 . . . . . 1 3 . Leg 51 | . . . . . . . 4 . 2 . 1 5 3 4 . 1 2 19 4 6 . . Wheel . | . . . . . . . . . . . . . . . . . . . . . . . Hover . | . . . . . . . . . . . . . . . . . . . . . . . Flight . | . . . . . . . . . . . . . . . . . . . . . . . Utility 129 | 2 3 1 5 2 3 1 22 1 2 . 1 10 5 3 3 3 4 27 13 11 3 4 Device 71 | 1 . 1 2 1 3 1 10 . . . 1 5 4 . 2 2 3 16 7 9 . 3 Storage 12 | 1 2 . 1 . . . 2 . . . . . . 1 . . . 2 2 . 1 . Processor 14 | . 1 . 1 . . . 5 . 1 . . 1 . . 1 . . 3 1 . . . Hackware 7 | . . . . . . . 2 . . . . 1 . . . 1 . 1 2 . . . Protection 23 | . . . 1 1 . . 3 1 1 . . 3 1 2 . . 1 5 1 2 . 1 Artifact 2 | . . . . . . . . . . . . . . . . . . . . . 2 . Weapon 60 | 2 2 2 8 4 . 1 3 . . . . . 1 1 . 1 1 13 10 6 1 4 Energy Gun 14 | 1 2 1 4 1 . . . . . . . . . . . . 1 2 2 . . . Energy Cannon 17 | . . . . 2 . . . . . . . . . . . . . 5 5 3 1 1 Ballistic Gun 9 | 1 . . 1 . . . 1 . . . . . . . . 1 . 4 1 . . . Ballistic Cannon . | . . . . . . . . . . . . . . . . . . . . . . . Launcher 9 | . . 1 2 1 . . 1 . . . . . . . . . . 2 . 1 . 1 Special Weapon 7 | . . . . . . . 1 . . . . . 1 1 . . . . 1 1 . 2 Impact Weapon 1 | . . . 1 . . . . . . . . . . . . . . . . . . . Slashing Weapon 2 | . . . . . . 1 . . . . . . . . . . . . . 1 . . Piercing Weapon 1 | . . . . . . . . . . . . . . . . . . . 1 . . . Special Melee Weapon . | . . . . . . . . . . . . . . . . . . . . . . . Unidentified Prototypes 37 | . . . . 1 . 1 2 . . . . 1 . 4 . . . 8 12 2 2 4 Corrupted Parts 1 | . . . . . . . . . . . . . 1 . . . . . . . . . System Corruption 3 | . . . . . . . . . . . . . 3 . . . . . . . . . Parts Lost 104 | . . 5 3 3 1 . 20 . 3 . 3 9 . . . 6 . 11 10 22 3 5 Power 25 | . . 1 . . . . 4 . . . 1 3 . . . 2 . 2 2 7 1 2 Propulsion 30 | . . 2 2 2 . . 11 . 2 . 1 4 . . . 2 . 1 1 2 . . Utility 40 | . . 1 1 1 1 . 5 . 1 . 1 2 . . . 1 . 5 6 10 2 3 Weapon 9 | . . 1 . . . . . . . . . . . . . 1 . 3 1 3 . . Highest Loss Streak 8 | . . 5 1 1 1 . 5 . 2 . 3 5 . . . 2 . 2 4 8 3 3 To Critical Strikes . | . . . . . . . . . . . . . . . . . . . . . . . Average Backups 15 | 2 8 7 13 14 14 14 12 17 17 17 16 16 17 18 19 17 14 19 19 17 18 18 Power 1 | . 1 1 1 1 1 1 1 1 . 1 1 1 1 1 1 . . 1 2 2 2 2 Propulsion 2 | . 1 1 . 2 4 4 1 2 2 1 . 1 3 5 5 5 2 3 3 4 4 3 Utility 4 | 1 1 . 2 1 . 1 4 8 8 9 9 7 6 7 8 7 7 6 4 2 4 3 Weapon 5 | . 4 4 8 9 8 6 2 3 3 3 2 3 3 2 3 2 2 6 7 7 5 5 Tool/Special . | . . . . . . . . . . . . . . . . . . . . . . . Unused Backups 71 | 1 1 . 12 7 1 5 4 2 . . . 4 2 3 1 . . 13 2 2 2 9 Power 11 | . . . 2 1 . . 1 . . . . 1 . 1 . . . 4 . . . 1 Propulsion 9 | . . . . 1 . . . 1 . . . . . 1 . . . 3 . 1 1 1 Utility 19 | 1 . . 1 2 . . 1 1 . . . 3 2 . . . . 4 . . . 4 Weapon 30 | . 1 . 9 3 1 5 1 . . . . . . 1 1 . . 2 2 1 1 2 Tool/Special 2 | . . . . . . . 1 . . . . . . . . . . . . . . 1 Average Slot Usage (%) 92 | . 100 98 97 98 99 97 87 80 81 93 90 84 91 94 94 92 88 96 97 93 88 83 Engine 5 | . 14 13 7 11 11 11 11 6 2 . . 4 2 . . 1 2 . . . . . Core 1 | . . . 3 . . . . . 4 13 10 2 6 8 5 4 4 . . . . . Reactor 3 | . . . . . . . . . . . . . . 1 5 3 2 8 8 11 13 12 Treads 12 | . 28 28 31 31 33 33 16 . . . . . . . . . . . . . 10 12 Leg 12 | . . . . . . . 9 26 25 26 26 22 23 22 23 23 25 22 23 20 3 . Device 17 | . 13 13 16 14 12 20 11 6 5 6 6 6 17 17 16 16 25 23 23 25 30 31 Storage 6 | . 14 14 11 11 11 11 6 6 6 6 6 5 5 5 5 5 5 4 4 4 4 4 Processor 9 | . . . . . . . 13 13 14 20 20 20 23 23 23 23 10 13 10 8 7 4 Hackware 2 | . . . . . . . 3 6 6 6 6 8 . . . . . 2 4 5 4 3 Protection 5 | . . . 3 7 9 . 5 5 5 6 6 5 4 5 5 3 5 8 9 6 . 1 Energy Gun 3 | . 21 24 20 12 . . . . . . . . . . . . . . . . . . Energy Cannon 4 | . . . . 8 21 19 . . . . . . . . . . . 5 7 7 7 7 Slashing Weapon 2 | . . . . . . 1 6 6 6 6 6 5 5 5 5 3 . . . . . . Peak Build Rating 208 | 7 8 14 20 22 23 26 73 72 74 70 76 78 87 99 99 103 98 166 172 182 208 202 Average Rating 82 | 6 7 8 17 19 20 24 56 71 70 70 66 69 72 89 98 94 89 139 155 164 198 191 On Entrance 72 | 1 7 8 14 19 20 20 23 72 72 70 70 60 67 81 98 98 72 98 162 159 180 201 Avg Prop Armor Cover (%) 6 | . . . . . . . 6 . . . . . . . . . . . 3 . . 3 Naked Turns . | . . . . . . . . . . . . . . . . . . . . . . . Heaviest Build 189 | 14 30 35 38 44 48 40 70 71 74 71 71 77 74 90 90 90 88 119 123 146 189 183 Greatest Support 215 | 40 40 40 60 60 60 68 90 74 76 71 71 70 76 102 102 102 88 138 151 151 215 215 Greatest Overweight (x) 2 | . . . . . . . 1 . . . . 1 1 2 . 1 . . . 2 . . Average Overweight (x) . | . . . . . . . . . . . . . . . . . . . . . . . Largest Inventory Capacity 25 | 8 15 15 15 15 15 15 20 20 20 20 20 20 20 20 20 20 20 25 20 20 20 20 Average Capacity 17 | 7 13 15 15 15 15 15 15 20 20 20 20 20 20 20 20 20 20 20 20 20 20 20 Most Carried 20 | 4 11 10 15 15 15 15 20 20 20 19 20 20 20 20 20 20 18 20 20 20 20 20 Average Carried 16 | 2 8 7 13 14 14 14 13 19 19 19 18 17 18 19 19 18 14 19 19 18 19 19 Final Capacity 20 | 8 15 15 15 15 15 15 20 20 20 20 20 20 20 20 20 20 20 20 20 20 20 20 Final Carried 20 | 3 10 8 14 15 14 11 20 20 19 19 18 19 19 20 20 17 18 20 20 20 17 20 Class Distribution -------------------- 58% | Scavenger-Mutant 25% | Mutant 5% | Scavenger-Skirmisher 4% | Scavenger-Assassin 3% | Commander-Mutant Dominant Class ---------------- Mutant | -10/Materials Mutant | -10/Mines Scavenger-Mutant | -9/Materials Scavenger-Mutant | -9/Storage Scavenger-Mutant | -9/Recycling Mutant | -9/Scraptown Scavenger-Assassin | -6/Factory Mutant | -6/Lower Caves Mutant | -6/Lower Caves Scavenger-Mutant | -6/Data Miner Scavenger-Mutant | -5/Proximity Caves Scavenger-Mutant | -5/Factory Scavenger-Mutant | -5/Extension Commander-Mutant | -5/Cetus Commander-Mutant | -5/Archives Commander-Mutant | -5/Hub_04(d) Scavenger-Mutant | -4/Factory Scavenger-Mutant | -3/Research Scavenger-Mutant | -3/Testing Scavenger-Mutant | -2/Research Scavenger-Mutant | -2/Quarantine Scavenger-Mutant | -2/Section 7 Resources | -11 -10 -10 -9 -9 -9 -9 -6 -6 -6 -6 -5 -5 -5 -5 -5 -5 -4 -3 -3 -2 -2 -2 ----------- Run | Yrd Mat Min Mat Sto Rec Scr Fac Low Low Dat Pro Fac Ext Cet Arc Hub Fac Res Tes Res Qua Sec Matter Collected 7939 | 311 200 223 463 287 10 109 991 77 144 . 110 303 240 200 26 178 70 1783 515 597 470 632 Remotely . | . . . . . . . . . . . . . . . . . . . . . . . Salvage Created 16202 | 296 338 111 1152 978 574 . 1636 416 128 . 60 896 509 206 72 278 70 2517 829 2036 1000 2100 Parts 775 | 29 21 7 69 58 25 . 81 15 7 . 3 46 21 12 5 13 3 92 51 111 43 63 Haulers Intercepted 12 | . 2 . 5 5 . . . . . . . . . . . . . . . . . . Recyclers Shooed 10 | 1 . . 3 1 1 . . . . . . . 1 . . . . . . 1 2 . Parts Field Recycled . | . . . . . . . . . . . . . . . . . . . . . . . Retrieved Matter . | . . . . . . . . . . . . . . . . . . . . . . . Parts Self-Destructed 23 | . . . . . . . . 13 7 . 3 . . . . . . . . . . . Prevented . | . . . . . . . . . . . . . . . . . . . . . . . Parts Restored . | . . . . . . . . . . . . . . . . . . . . . . . Kills | -11 -10 -10 -9 -9 -9 -9 -6 -6 -6 -6 -5 -5 -5 -5 -5 -5 -4 -3 -3 -2 -2 -2 ------- Run | Yrd Mat Min Mat Sto Rec Scr Fac Low Low Dat Pro Fac Ext Cet Arc Hub Fac Res Tes Res Qua Sec Combat Hostiles Destroyed 268 | . 7 22 27 20 4 . 18 6 5 . 1 18 8 1 . 8 1 42 8 29 10 33 Melee 51 | . . . 2 . . . 16 6 5 . 1 14 4 1 . 2 . . . . . . Guns 47 | . 7 2 12 14 . . . . . . . . . . . 2 1 9 . . . . Cannons 71 | . . . . 1 4 . . . . . . . . . . . . 8 7 21 9 21 AOE 83 | . . 20 13 3 . . 2 . . . . 4 4 . . 4 . 19 . 5 . 9 Classes Destroyed 23 | 3 4 1 4 2 . . 2 1 . . . . . . 1 . . 3 . . 1 1 Worker 20 | 2 . . 4 3 . . 3 . . . . 2 . . . 1 . 3 . 2 . . Builder 11 | . . . 2 . . . 1 . . . . . 2 . . . . 2 1 3 . . Tunneler 13 | 9 . 1 1 . . . 1 . . . . . . . . . . . . 1 . . Hauler 12 | . 2 . 5 5 . . . . . . . . . . . . . . . . . . Recycler 14 | 1 . . 1 . 4 . 5 . . . . . 1 . . . . 2 . . . . Minesweeper 1 | . . . . . . . . 1 . . . . . . . . . . . . . . Mechanic 3 | . . . 1 . . . . . . . . 1 . . . . . . . . . 1 Operator 4 | . . . . . . . . . . . . . . . 2 . . . 1 . 1 . Watcher 9 | . 1 . 2 1 . . 2 . . . . . . . . . . . 1 1 . 1 Swarmer 57 | . 3 1 7 6 . . 2 2 5 . . 4 4 . . 4 . 12 . 5 . 2 Grunt 81 | . 4 2 13 5 . . . 3 . . . 10 3 . . 2 1 16 . 5 2 15 Brawler 3 | . . . . 1 . . . . . . . . . . . . . . . 1 . 1 Duelist 3 | . . . 1 . . . . . . . . 1 . . . . . . . . . 1 Protector 1 | . . . . 1 . . . . . . . . . . . . . . . . . . Researcher 1 | . . . . . . . . . . . . . . . . . . . . . . 1 Sentry 34 | . . . 6 7 4 . 5 1 . . . 1 1 . . . . 4 . 2 . 3 Demolisher 1 | . . . . . . . . . . . . . . . . . . 1 . . . . Hunter 19 | . . . . . . . 6 . . . . . . . . . . 2 2 5 . 4 Programmer 41 | . . . . . . . 5 . . . 1 2 . . . 2 . 1 6 11 7 6 Cetus Guard 1 | . . . . . . . . . . . . . . 1 . . . . . . . . S7 Guard 1 | . . . . . . . . . . . . . . . . . . . . . . 1 Striker 5 | . . . . . . . . . . . . . . . . . . 5 . . . . Executioner 1 | . . . . . . . . . . . . . . . . . . 1 . . . . Fortress 1 | . . . . . . . . . . . . . . . . . . . . . 1 . Decomposer 1 | . . . . . . . . 1 . . . . . . . . . . . . . . Assembled 19 | . . 19 . . . . . . . . . . . . . . . . . . . . Guerrilla 2 | . . . . . . . . . . . . . . 2 . . . . . . . . Best Kill Streak 19 | 5 5 19 13 4 3 . 4 2 4 . 1 6 4 1 1 4 1 13 2 5 4 10 Combat Bots Only 19 | . 4 19 8 3 1 . 3 2 4 . 1 4 4 1 . 4 1 13 2 5 4 9 Max Kills in Single Turn 6 | 1 1 6 6 3 1 . 1 1 1 . 1 3 4 1 1 2 1 3 2 3 1 2 Gunslinging . | . . . . . . . . . . . . . . . . . . . . . . . Exploded 6 | . . 6 3 3 . . 1 . . . . 2 4 . . 2 . 3 . 3 . 2 Melee 1 | . . . 1 . . . 1 1 1 . 1 1 1 1 . 1 . . . . . . Uniques/NPCs Destroyed . | . . . . . . . . . . . . . . . . . . . . . . . Combat | -11 -10 -10 -9 -9 -9 -9 -6 -6 -6 -6 -5 -5 -5 -5 -5 -5 -4 -3 -3 -2 -2 -2 -------- Run | Yrd Mat Min Mat Sto Rec Scr Fac Low Low Dat Pro Fac Ext Cet Arc Hub Fac Res Tes Res Qua Sec Hostile Shots Fired 2434 | . 44 64 104 81 16 . 544 69 38 . 27 129 17 11 26 84 12 273 207 291 94 303 Missed 775 | . 10 23 34 26 5 . 174 28 10 . 8 37 8 7 10 34 3 95 97 89 27 50 Hits 1659 | . 34 41 70 55 11 . 370 41 28 . 19 92 9 4 16 50 9 178 110 202 67 253 Melee 43 | . . 4 3 . . . . . . . . 8 . . . . . 20 . 1 . 7 Projectile 1616 | . 34 37 67 55 11 . 370 41 28 . 19 84 9 4 16 50 9 158 110 201 67 246 AOE 3 | . . . . . . . 3 . . . . . . . . . . . . . . . Critical Strikes 68 | . 1 . 3 1 . . 3 . . . . 4 1 2 . 2 1 8 3 14 5 20 Actively Blocked 40 | . . . . . . . . . . . . . . . . . . . 3 12 5 20 Part Disruptions 5 | . . 1 . . . . . . . . . . . . . . . . 2 . 2 . Damage Taken 29399 | . 375 648 953 704 332 . 4137 454 413 . 381 1884 142 161 544 869 174 4264 2663 4364 1789 4148 Core 3507 | . 77 109 127 114 96 . 449 73 . . . 198 30 34 38 82 52 439 134 367 339 749 Absorbed by Shields 3629 | . . . . . . . 85 . . . . . 80 57 . . . 667 55 296 199 2190 Reduced by Siege Mode 389 | . . . . . . . . . . . . . . . . . . . . . 66 323 Redirected to Core 649 | . . . . . . . . . . . . . . . . . . . . . 247 402 Ignored by Resistances 546 | . . . . . . . 325 . . . . . . . . . . . . . . 221 Regen/Repaired (Parts) 1122 | . . . . 155 . 250 . . . . . . . . . . . 335 176 206 . . Core Remaining (%) 55 | 100 . 25 . . . 15 . . . . 38 . . . . 61 95 . 55 . . . Volleys Fired 732 | 21 43 20 71 72 20 . 5 . . . 2 3 2 . . 15 11 113 92 88 52 102 Largest 2 | 2 2 2 2 2 2 . 1 . . . 1 1 1 . . 1 1 2 2 2 2 2 Hottest 250 | 60 100 100 112 136 136 . 43 . . . 43 43 43 . . 43 35 226 243 233 250 233 Shots Fired 1211 | 42 86 27 123 142 38 . 5 . . . 2 3 2 . . 15 11 185 130 160 80 160 Gun 457 | 42 86 14 112 112 . . . . . . . . . . . 12 11 68 . . . . Cannon 653 | . . . . 28 35 . . . . . . . . . . . . 93 120 158 76 143 Launcher 79 | . . 13 11 2 3 . 5 . . . 2 3 1 . . 3 . 24 . 2 . 10 Special 22 | . . . . . . . . . . . . . 1 . . . . . 10 . 4 7 Kinetic 141 | 21 37 . 10 . . . . . . . . . . . . 12 11 50 . . . . Thermal 968 | 21 49 14 102 140 35 . . . . . . . . . . . . 111 119 158 76 143 Explosive 71 | . . 13 11 2 3 . 5 . . . 2 3 1 . . 3 . 16 . 2 . 10 Electromagnetic 9 | . . . . . . . . . . . . . . . . . . 8 1 . . . Robot Hit Streak 36 | 8 10 5 9 32 4 . 7 . . . . 8 9 . . 9 11 12 18 36 13 29 Robot Miss Streak 6 | 2 6 3 3 3 2 . . . . . . . . . . 1 1 3 2 3 2 3 Penetration Max 1 | . . . . . . . . . . . . . . . . . . 1 . . . . Secondary Targets 1 | . . . . 1 . . . . . . . . . . . . . . . . . . Max Gunslinging Chain 1 | . . . . 1 . . . . . . . . . . . . . . . . . . Shots Hit Robots 940 | 23 43 8 80 93 23 . 93 20 9 . 9 49 13 14 11 21 8 105 58 108 52 100 Core Hits 606 | 13 16 51 64 40 9 . 39 10 3 . 2 34 13 6 4 14 3 103 23 50 20 89 Critical Kills 13 | . . . . . . . . . . . . . . . . . . 2 2 2 2 5 Critical Parts Destroyed . | . . . . . . . . . . . . . . . . . . . . . . . Critical Strikes 28 | . . . 8 3 . . 4 . . . . . . . . . . 2 2 2 2 5 Burn 11 | . . . 8 3 . . . . . . . . . . . . . . . . . . Meltdown 13 | . . . . . . . . . . . . . . . . . . 2 2 2 2 5 Melee Attacks 312 | . . . 8 7 . . 125 24 18 . 13 62 14 15 11 15 . . . . . . Impact 15 | . . . 8 7 . . . . . . . . . . . . . . . . . . Slashing 297 | . . . . . . . 125 24 18 . 13 62 14 15 11 15 . . . . . . Piercing . | . . . . . . . . . . . . . . . . . . . . . . . Sneak Attacks 37 | . . . 1 . . . 15 3 . . . 2 5 7 3 1 . . . . . . Combat Hostiles . | . . . . . . . . . . . . . . . . . . . . . . . Follow-up Attacks 2 | . . . . . . . . . 1 . . . . 1 . . . . . . . . Damage Inflicted 46337 | 280 567 1492 2883 2182 598 . 4668 1136 371 . 378 2748 997 901 735 1236 217 7377 2336 5856 2150 7229 Guns 5192 | 280 556 86 1011 1334 . . . . . . . . . . . 300 217 1408 . . . . Cannons 16250 | . . . . 282 486 . . . . . . . . . . . . 2353 2190 5047 2020 3872 Explosions 13372 | . . 1403 1611 533 89 . 426 . . . . 636 274 . . 398 . 3600 141 774 130 3357 Melee 11341 | . . . 241 . . . 4242 1136 371 . 378 2092 719 901 735 526 . . . . . . Ramming 182 | . 11 3 20 33 23 . . . . . . 20 4 . . 12 . 16 5 35 . . Kinetic 2067 | 114 262 . 66 . . . . . . . . . . . . 300 217 1108 . . . . Thermal 19590 | 166 294 86 945 1616 486 . . . . . . . . . . . . 2868 2190 5047 2020 3872 Explosive 12574 | . . 1403 1611 533 89 . 426 . . . . 603 274 . . 398 . 2835 141 774 130 3357 Electromagnetic 583 | . . . . . . . . . . . . 33 . . . . . 550 . . . . Impact 241 | . . . 241 . . . . . . . . . . . . . . . . . . . Slashing 11100 | . . . . . . . 4242 1136 371 . 378 2092 719 901 735 526 . . . . . . Piercing . | . . . . . . . . . . . . . . . . . . . . . . . Highest Corruption 29 | . . . . . . . 4 4 4 4 8 8 11 6 6 7 . 5 20 15 19 29 Average Corruption 8 | . . . . . . . 3 4 4 4 5 5 7 6 6 6 . 3 12 10 17 20 Corruption Purged 7 | . . . . . . . 2 . . . . . 5 . . . . . . . . . Corruption Blocked . | . . . . . . . . . . . . . . . . . . . . . . . Effects 426 | . . . . . . . 26 20 21 3 21 7 42 13 5 13 . 49 55 43 51 57 Message Errors 104 | . . . . . . . 10 7 3 . 4 3 11 4 1 5 . 7 15 13 12 9 Matter Fused 111 | . . . . . . . 6 4 10 2 7 1 8 4 1 2 . 16 10 11 15 14 Heat Flow Errors 54 | . . . . . . . 2 5 4 . 2 2 7 3 . 2 . 5 3 5 7 7 Energy Discharges 47 | . . . . . . . 2 3 . 1 4 . 8 1 1 2 . 10 4 4 4 3 Parts Rejected 8 | . . . . . . . . . . . . . 1 . . . . 1 2 . 1 3 Parts Fused 6 | . . . . . . . . . . . . . 1 . 1 . . . 2 1 . 1 Data Loss (minor) 35 | . . . . . . . 5 . 3 . 1 . 4 1 1 1 . 3 7 1 4 4 Data Loss (major) 14 | . . . . . . . . 1 1 . 1 . 2 . . 1 . . 3 2 1 2 Misfires 10 | . . . . . . . . . . . . . . . . . . 3 . 2 2 3 Alerts 13 | . . . . . . . 1 . . . 2 1 . . . . . 2 1 1 . 5 Misdirections 2 | . . . . . . . . . . . . . . . . . . . 2 . . . Weapon Failures 22 | . . . . . . . . . . . . . . . . . . 2 6 3 5 6 Overload Shots . | . . . . . . . . . . . . . . . . . . . . . . . Overflow Damage 2278 | . . 26 74 1 . . 460 123 109 . 66 139 76 1 151 45 . 161 132 395 171 148 Projectiles 680 | . . . . 1 . . . . . . . . . . . . . 60 40 395 101 83 Explosions 459 | . . 26 49 . . . . . . . . 47 . . . 9 . 101 92 . 70 65 Melee 1139 | . . . 25 . . . 460 123 109 . 66 92 76 1 151 36 . . . . . . Knockbacks . | . . . . . . . . . . . . . . . . . . . . . . . Impact . | . . . . . . . . . . . . . . . . . . . . . . . Kinetic . | . . . . . . . . . . . . . . . . . . . . . . . Secondary . | . . . . . . . . . . . . . . . . . . . . . . . Self-Inflicted Damage 772 | . . 43 . . 171 . . . . . . . . . . . . 7 105 43 . 403 Shots 15 | . . 2 . . 3 . . . . . . . . . . . . 1 1 1 . 7 Rammed 13 | . 1 1 4 4 3 . . . . . . . . . . . . . . . . . Targets Rammed 30 | . 1 1 5 4 3 . . . . . . 5 1 . . 1 . 3 1 5 . . Kicked 16 | . . . . . . . . . . . . 5 1 . . 1 . 3 1 5 . . Crushed 1 | . . . 1 . . . . . . . . . . . . . . . . . . . Highest Temperature 385 | . 113 144 364 204 342 . 184 268 259 . 256 180 249 265 . 110 19 335 385 241 251 218 Average Temperature 81 | . 35 45 102 67 100 . 85 122 107 . 119 81 103 113 . 63 10 73 100 50 85 88 Received Heat Transfer 3445 | . 183 116 339 183 81 . 537 141 . . . 457 34 31 57 72 58 342 196 291 112 215 Thermoelectric Energy+ 6 | . . . . . . . . . . . . . . . . . . . . . . 6 Effects 5 | . . . 3 . 1 . . . . . . . . . . . . . 1 . . . Shutdowns 1 | . . . . . . . . . . . . . . . . . . . 1 . . . Energy Bleed 3 | . . . 2 . 1 . . . . . . . . . . . . . . . . . Interference 1 | . . . 1 . . . . . . . . . . . . . . . . . . . Siege Activations 8 | . . . . . . . . . . . . . . . . . . . . . 3 5 Total Turns 252 | . . . . . . . . . . . . . . . . . . . . . 114 138 Longest Duration 78 | . . . . . . . . . . . . . . . . . . . . . 55 78 Martial Activations . | . . . . . . . . . . . . . . . . . . . . . . . Shielding Activations . | . . . . . . . . . . . . . . . . . . . . . . . Robots Disrupted 4 | . . . . . . . 3 . . . . 1 . . . . . . . . . . Combat Hostiles 3 | . . . . . . . 2 . . . . 1 . . . . . . . . . . Robots Corrupted 4 | . . . . . . . . . . . . . . . . . . 4 . . . . Combat Hostiles 4 | . . . . . . . . . . . . . . . . . . 4 . . . . Parts Fried 5 | . . . . . . . . . . . . . 2 . . . . 3 . . . . Impact Corruptions 2 | . . . 2 . . . . . . . . . . . . . . . . . . . Robots Melted 16 | . . . . 2 . . . . . . . . . . . . . 2 2 3 2 5 Combat Hostiles 12 | . . . . 2 . . . . . . . . . . . . . 2 1 3 1 3 Parts Melted 61 | 1 . . 2 5 2 . 2 . . . . . . . . 1 . 3 12 14 8 11 Heat Transferred 22867 | 375 840 259 2923 3655 888 . . . . . . . . . . . . 2666 1937 4292 1554 3478 Parts Sabotaged . | . . . . . . . . . . . . . . . . . . . . . . . Parts Stolen . | . . . . . . . . . . . . . . . . . . . . . . . Parts Stripped . | . . . . . . . . . . . . . . . . . . . . . . . Power Chain Reactions 1 | . . . . . . . . . . . . . . . . . . 1 . . . . Alert | -11 -10 -10 -9 -9 -9 -9 -6 -6 -6 -6 -5 -5 -5 -5 -5 -5 -4 -3 -3 -2 -2 -2 ------- Run | Yrd Mat Min Mat Sto Rec Scr Fac Low Low Dat Pro Fac Ext Cet Arc Hub Fac Res Tes Res Qua Sec Maximum Alert Level 3 | . . . 2 2 . . . . . . . 1 2 1 1 2 . 2 1 2 2 3 Low Security (%) 58 | 100 100 100 27 24 100 . 100 . . . . 89 92 5 31 11 100 70 . 41 4 35 Level 1 29 | . . . 53 24 . . . . . . . 10 4 94 68 37 . 14 100 33 94 30 Level 2 11 | . . . 19 50 . . . . . . . . 2 . . 50 . 14 . 25 1 23 Level 3 . | . . . . . . . . . . . . . . . . . . . . . . 10 Level 4 . | . . . . . . . . . . . . . . . . . . . . . . . Level 5 . | . . . . . . . . . . . . . . . . . . . . . . . High Security . | . . . . . . . . . . . . . . . . . . . . . . . Max Security . | . . . . . . . . . . . . . . . . . . . . . . . Peak Influence 880 | 20 120 64 525 622 187 . 113 . . . . 269 501 351 231 453 181 639 362 576 400 880 Initial 358 | . 6 1 1 137 187 . . . . . . . 64 276 92 66 179 17 358 150 303 166 Average 188 | 3 41 14 260 338 106 . 39 . . . . 84 68 268 186 340 108 174 292 296 294 357 Influence Increases 11912 | 60 299 120 997 1254 387 . 855 130 125 . 45 681 823 361 219 714 54 1355 639 1108 488 1198 Destroy 0b10 Robot/C 5800 | . 140 60 540 620 80 . 380 120 100 . 20 360 360 160 80 260 20 840 180 580 220 680 Destroy 0b10 Robot/NC 550 | 60 15 5 80 60 25 . 60 10 . . . 15 45 10 10 20 . 35 35 35 10 20 Destroy Leader 1170 | . 36 10 144 192 . . 154 . 10 . 10 50 36 . . 62 . 180 52 102 30 102 Allied During Kill 836 | . . . . 49 1 . 6 . . . . . 330 146 90 211 1 . 2 . . . Successful Hack 671 | . 17 . 25 64 27 . 177 . . . . 63 14 . . 5 12 42 155 52 18 . Select Force Hacks 380 | . 30 . 60 60 180 . . . . . . . . . . 50 . . . . . . Disable Machine 720 | . . . 90 60 30 . 45 . . . . 90 . 15 15 15 15 45 105 45 105 45 Destroy Structure 1455 | . 1 45 58 29 44 . 33 . . . . 88 38 30 24 76 6 198 110 234 105 336 Partial Spotted 45 | . . . . 15 . . . . . . . . . . . . . 15 . . . 15 Lose Combat Pursuer 285 | . 60 . . 105 . . . . 15 . 15 15 . . . 15 . . . 60 . . Influence Decreases 11056 | 50 304 120 675 1099 827 42 834 151 125 . 45 549 462 623 259 539 387 750 1010 835 731 639 Entered New Map 2065 | . 4 4 4 190 295 42 . 9 . . . . 68 217 139 125 187 16 280 117 237 131 Time Decay 6760 | 50 300 96 491 559 502 . 482 142 105 . 25 329 345 326 80 214 180 624 490 498 464 458 Lost Part 925 | . . 20 30 30 10 . 155 . 20 . 20 70 . . . 60 . 110 100 220 30 50 Lost Ally 549 | . . . . 20 20 . 40 . . . . . 49 80 40 140 20 . 140 . . . Purge Threat 757 | . . . 150 300 . . 157 . . . . 150 . . . . . . . . . . Squads Dispatched 63 | . 1 . 3 5 . . 14 . . . . 2 1 . . 5 . 13 5 4 2 8 Investigation 18 | . 1 . 2 2 . . 5 . . . . 1 1 . . 2 . 2 1 . . 1 Extermination 15 | . . . . . . . 4 . . . . 1 . . . 1 . . 2 3 2 2 Reinforcement 20 | . . . . . . . 5 . . . . . . . . 2 . 8 2 1 . 2 Assault 6 | . . . 1 2 . . . . . . . . . . . . . . . . . 3 Garrison 4 | . . . . 1 . . . . . . . . . . . . . 3 . . . . Intercept . | . . . . . . . . . . . . . . . . . . . . . . . Searches Triggered . | . . . . . . . . . . . . . . . . . . . . . . . Construction Impeded 3 | . . . . . . . 1 . . . . . . . . . . 2 . . . . Haulers Reinforced 4 | . . . . . . . 1 . . . . . . . . . . 3 . . . . Active Scanning Responses . | . . . . . . . . . . . . . . . . . . . . . . . Cargo Convoy Interrupts . | . . . . . . . . . . . . . . . . . . . . . . . Stealth | -11 -10 -10 -9 -9 -9 -9 -6 -6 -6 -6 -5 -5 -5 -5 -5 -5 -4 -3 -3 -2 -2 -2 --------- Run | Yrd Mat Min Mat Sto Rec Scr Fac Low Low Dat Pro Fac Ext Cet Arc Hub Fac Res Tes Res Qua Sec Distress Signals 32 | . 4 . 3 6 . . 2 . . . . 1 2 2 . 4 . 4 2 1 1 . Communications Jammed 376 | . . . . . . . . . . . . . 120 133 . 4 . 22 51 26 . 20 Distress Signals 374 | . . . . . . . . . . . . . 120 133 . 4 . 22 51 24 . 20 Times Spotted 430 | . 13 21 36 40 2 . 35 6 6 . 2 26 21 10 6 19 1 62 27 39 13 45 Peak Tracking Total 16 | . 5 16 7 9 1 . 4 3 4 . 2 5 5 5 3 5 1 6 11 6 3 9 Tactical Retreats 17 | . 2 . . 3 . . . . 1 . 1 1 . . . 1 . 2 3 3 . . ECM-based Alert Blocks 15 | . . . . . . . . . . . . . . . . . . 4 11 . . . Traps | -11 -10 -10 -9 -9 -9 -9 -6 -6 -6 -6 -5 -5 -5 -5 -5 -5 -4 -3 -3 -2 -2 -2 ------- Run | Yrd Mat Min Mat Sto Rec Scr Fac Low Low Dat Pro Fac Ext Cet Arc Hub Fac Res Tes Res Qua Sec Traps Triggered 14 | . . . 1 . . . 3 . . . . 1 . . . . . 4 1 2 1 1 Indirectly . | . . . . . . . . . . . . . . . . . . . . . . . Trap Hack Attempts . | . . . . . . . . . . . . . . . . . . . . . . . Triggered . | . . . . . . . . . . . . . . . . . . . . . . . Disarmed . | . . . . . . . . . . . . . . . . . . . . . . . Reprogrammed . | . . . . . . . . . . . . . . . . . . . . . . . Reused . | . . . . . . . . . . . . . . . . . . . . . . . Traps Extracted . | . . . . . . . . . . . . . . . . . . . . . . . Installed . | . . . . . . . . . . . . . . . . . . . . . . . Triggered . | . . . . . . . . . . . . . . . . . . . . . . . Machines | -11 -10 -10 -9 -9 -9 -9 -6 -6 -6 -6 -5 -5 -5 -5 -5 -5 -4 -3 -3 -2 -2 -2 ---------- Run | Yrd Mat Min Mat Sto Rec Scr Fac Low Low Dat Pro Fac Ext Cet Arc Hub Fac Res Tes Res Qua Sec Machines Disabled 50 | . . . 6 4 2 . 3 . . . . 6 . 1 1 1 1 3 9 3 7 3 Max in Single Turn 6 | . . . 2 1 2 . 1 . . . . 6 . 1 . 1 1 1 1 2 2 1 Garrison Access 4 | . . . . 1 . . . . . . . 1 . . . 1 . . . . . 1 Network Hub 1 | . . . . . . . . . . . . . . . . 1 . . . . . . Machines Repaired . | . . . . . . . . . . . . . . . . . . . . . . . Machines Dismantled 1 | . . . . . . . . . . . . . . 1 . . . . . . . . Machines Sabotaged 1 | . . . . . . . . . . . . . . . . 1 . . . . . . Overloaded Fab Kills . | . . . . . . . . . . . . . . . . . . . . . . . Hacking | -11 -10 -10 -9 -9 -9 -9 -6 -6 -6 -6 -5 -5 -5 -5 -5 -5 -4 -3 -3 -2 -2 -2 --------- Run | Yrd Mat Min Mat Sto Rec Scr Fac Low Low Dat Pro Fac Ext Cet Arc Hub Fac Res Tes Res Qua Sec Machines Accessed 131 | . 7 . 12 14 12 5 23 . 1 3 . 8 5 1 . 6 3 10 9 6 2 4 Terminals 68 | . 6 . 7 10 6 . 13 . . . . 5 5 1 . 5 1 . 2 3 2 2 Fabricators 9 | . . . . . . . 3 . . . . . . . . . . 2 2 2 . . Repair Stations 8 | . . . 1 1 . . . . . . . 2 . . . . 1 2 1 . . . Recycling Units 15 | . 1 . 2 2 6 . 4 . . . . . . . . . . . . . . . Scanalyzers 11 | . . . 2 . . . 1 . . . . . . . . . . 3 3 . . 2 Garrison Access 11 | . . . . 1 . . 2 . . . . 1 . . . 1 1 3 1 1 . . Total Hacks 343 | . 17 . 33 32 33 11 48 . 1 20 . 30 8 1 . 11 10 32 28 14 7 7 Successful 186 | . 11 . 17 22 20 11 24 . 1 20 . 15 1 . . 4 1 15 13 6 3 2 Failed 155 | . 6 . 16 10 13 . 24 . . . . 15 7 1 . 7 9 16 14 8 4 5 Catastrophic 36 | . . . . 1 3 . 4 . . . . 2 5 1 . . 2 4 4 5 2 3 Database Lockouts 2 | . . . . . . . . . . . . . . . . . . 1 1 . . . Manual 148 | . 17 . 24 21 24 . 13 . . . . 8 5 1 . 9 3 . 8 6 4 5 Terminals 195 | . 16 . 24 23 27 . 33 . . . . 26 8 1 . 9 3 . 4 9 7 5 Fabricators 22 | . . . . . . . 6 . . . . . . . . . . 4 9 3 . . Repair Stations 25 | . . . 2 5 . . . . . . . 3 . . . . 5 9 1 . . . Recycling Units 15 | . 1 . 2 2 6 . 4 . . . . . . . . . . . . . . . Scanalyzers 33 | . . . 5 . . . 1 . . . . . . . . . . 12 13 . . 2 Garrison Access 21 | . . . . 2 . . 4 . . . . 1 . . . 2 2 7 1 2 . . Terminal Hacks 77 | . 3 . 4 6 7 11 12 . 1 20 . 9 . . . . . . . 2 2 . Record 6 | . . . . . . 4 . . . 2 . . . . . . . . . . . . Part Schematic 13 | . . . 1 . 2 . 1 . . 9 . . . . . . . . . . . . Robot Schematic 6 | . . . . . . . . . . 6 . . . . . . . . . . . . Robot Analysis 6 | . . . . . . 5 1 . . . . . . . . . . . . . . . Prototype ID Bank 15 | . 3 . 2 1 3 . . . . 3 . 2 . . . . . . . . 1 . Open Door 6 | . . . . 3 . 1 . . 1 . . 1 . . . . . . . . . . Level Access Points 1 | . . . . . . . . . . . . . . . . . . . . . 1 . Branch Access Points 2 | . . . . . . . 1 . . . . . . . . . . . . 1 . . Emergency Access Points 1 | . . . . . . . . . . . . 1 . . . . . . . . . . Machine Index 1 | . . . . . . . . . . . . 1 . . . . . . . . . . Terminal Index 3 | . . . . . . . 1 . . . . 1 . . . . . . . 1 . . Fabricator Index 1 | . . . . . . . 1 . . . . . . . . . . . . . . . Alert Level 2 | . . . . . 1 . . . . . . 1 . . . . . . . . . . Unreport Threat 6 | . . . 1 2 . . 2 . . . . 1 . . . . . . . . . . Locate Traps 1 | . . . . . . . 1 . . . . . . . . . . . . . . . Maintenance Status 1 | . . . . . . . . . . . . 1 . . . . . . . . . . Hauler Manifests 1 | . . . . . . . 1 . . . . . . . . . . . . . . . Registered Components 2 | . . . . . 1 . 1 . . . . . . . . . . . . . . . Registered Prototypes 1 | . . . . . . . 1 . . . . . . . . . . . . . . . Zone Layout 1 | . . . . . . . 1 . . . . . . . . . . . . . . . Proto ID Catalog 1 | . . . . . . 1 . . . . . . . . . . . . . . . . Fabricator Hacks 10 | . . . . . . . 3 . . . . . . . . . . 4 2 1 . . Network Status 3 | . . . . . . . 1 . . . . . . . . . . 1 . 1 . . Load Schematic 3 | . . . . . . . 1 . . . . . . . . . . 1 1 . . . Build 4 | . . . . . . . 1 . . . . . . . . . . 2 1 . . . Repair Station Hacks 13 | . . . 1 4 . . . . . . . 1 . . . . 1 6 . . . . Scan Component 8 | . . . 1 2 . . . . . . . 1 . . . . 1 3 . . . . Repair 5 | . . . . 2 . . . . . . . . . . . . . 3 . . . . Recycling Unit Hacks . | . . . . . . . . . . . . . . . . . . . . . . . Scanalyzer 18 | . . . 4 . . . . . . . . . . . . . . 5 8 . . 1 Insert Component 3 | . . . . . . . . . . . . . . . . . . . 3 . . . Analyze 3 | . . . . . . . . . . . . . . . . . . . 3 . . . Retrieve Study 12 | . . . 4 . . . . . . . . . . . . . . 5 2 . . 1 Garrison Access Hacks 3 | . . . . 1 . . . . . . . 1 . . . 1 . . . . . . Seal Access 3 | . . . . 1 . . . . . . . 1 . . . 1 . . . . . . Unauthorized Hacks 65 | . 8 . 8 11 13 . 9 . . . . 4 1 . . 3 . . 3 3 1 1 Terminals 45 | . 7 . 6 9 7 . 2 . . . . 4 1 . . 3 . . 1 3 1 1 Assimilate 1 | . . . . . . . . . . . . 1 . . . . . . . . . . Botnet 19 | . 2 . 1 3 2 . 2 . . . . 2 1 . . 1 . . 1 2 1 1 Operators 2 | . . . . . . . . . . . . 1 . . . . . . . 1 . . Skim 21 | . 5 . 5 6 5 . . . . . . . . . . . . . . . . . Sabotage 2 | . . . . . . . . . . . . . . . . 2 . . . . . . Fabricators 5 | . . . . . . . 3 . . . . . . . . . . . 2 . . . Liberate 5 | . . . . . . . 3 . . . . . . . . . . . 2 . . . Repair Stations . | . . . . . . . . . . . . . . . . . . . . . . . Recycling Units 15 | . 1 . 2 2 6 . 4 . . . . . . . . . . . . . . . Tunnel 11 | . 1 . 2 2 6 . . . . . . . . . . . . . . . . . Fedlink 4 | . . . . . . . 4 . . . . . . . . . . . . . . . Scanalyzers . | . . . . . . . . . . . . . . . . . . . . . . . Garrison Access . | . . . . . . . . . . . . . . . . . . . . . . . Data Cores Recovered 1 | . . . . . . . . . . . . . . . . . . . 1 . . . Used . | . . . . . . . . . . . . . . . . . . . . . . . Hacking Detections 89 | . 6 . 10 10 6 . 15 . . . . 7 5 1 . 2 3 8 8 3 1 4 Full Trace Events 5 | . . . . . . . 1 . . . . 1 1 . . . . 1 1 . . . Feedback Events . | . . . . . . . . . . . . . . . . . . . . . . . Feedback Blocked . | . . . . . . . . . . . . . . . . . . . . . . . Robot Schematics Acquired 8 | . . . . . . . . . . 6 . . . . . . . . 2 . . . Robots Built . | . . . . . . . . . . . . . . . . . . . . . . . Authchips . | . . . . . . . . . . . . . . . . . . . . . . . Time . | . . . . . . . . . . . . . . . . . . . . . . . Total Robot Build Rating . | . . . . . . . . . . . . . . . . . . . . . . . Part Schematics Acquired 24 | . . . 1 . 2 . 1 . . 9 . . . . . . . . 7 . 2 2 Parts Built 2 | . . . . . . . . . . . . . . . . . . 2 . . . . Authchips . | . . . . . . . . . . . . . . . . . . . . . . . Time 364 | . . . . . . . 51 . . . . . . . . . . 263 50 . . . Total Part Build Rating 14 | . . . . . . . . . . . . . . . . . . 14 . . . . Part Studies Acquired 12 | . . . 4 . . . . . . . . . . . . . . 5 2 . . 1 Parts Repaired 4 | . . . . 2 . . . . . . . . . . . . . 2 . . . . Time 256 | . . . . 32 . . . . . . . . . . . . . 224 . . . . Parts Recycled . | . . . . . . . . . . . . . . . . . . . . . . . Recycled Matter . | . . . . . . . . . . . . . . . . . . . . . . . Retrieved Matter . | . . . . . . . . . . . . . . . . . . . . . . . Retrieved Components . | . . . . . . . . . . . . . . . . . . . . . . . Parts Scanalyzed 2 | . . . . . . . . . . . . . . . . . . . 2 . . . Part Schematics Acquired 2 | . . . . . . . . . . . . . . . . . . . 2 . . . Parts Damaged 1 | . . . . . . . . . . . . . . . . . . . 1 . . . Bothacking | -11 -10 -10 -9 -9 -9 -9 -6 -6 -6 -6 -5 -5 -5 -5 -5 -5 -4 -3 -3 -2 -2 -2 ------------ Run | Yrd Mat Min Mat Sto Rec Scr Fac Low Low Dat Pro Fac Ext Cet Arc Hub Fac Res Tes Res Qua Sec Used RIF Installer . | . . . . . . . . . . . . . . . . . . . . . . . Robots Hacked 15 | . . . . . . . . . . . . . . . . . . . 8 . 3 4 Non-combat . | . . . . . . . . . . . . . . . . . . . . . . . Combat . | . . . . . . . . . . . . . . . . . . . . . . . Robot Hacks Applied . | . . . . . . . . . . . . . . . . . . . . . . . Manual 15 | . . . . . . . . . . . . . . . . . . . 8 . 3 4 Relay Couplers Released 3 | . . . . . . . . . . . . . . . . . . . . . . 3 Machine Destruction 3 | . . . . . . . . . . . . . . . . . . . . . . 3 Fabnet Peak Effective % . | . . . . . . . . . . . . . . . . . . . . . . . Robots Rewired 8 | . . . . . . . 2 . . . . . 6 . . . . . . . . . Allies Hacked 2 | . . . . . . . . . . . . . . . . . . . 2 . . . Hacks Repelled . | . . . . . . . . . . . . . . . . . . . . . . . Allies | -11 -10 -10 -9 -9 -9 -9 -6 -6 -6 -6 -5 -5 -5 -5 -5 -5 -4 -3 -3 -2 -2 -2 -------- Run | Yrd Mat Min Mat Sto Rec Scr Fac Low Low Dat Pro Fac Ext Cet Arc Hub Fac Res Tes Res Qua Sec Total Allies 34 | . . . . 2 . . 2 . . . . 1 17 5 . . . . 7 . . . Largest Group 13 | . . . . 2 1 . 1 . . . . 1 13 13 11 8 1 . 4 . . . Highest-Rated Group 772 | . . . . 62 31 . 41 . . . . 26 484 772 653 461 21 . 258 . . . Highest-Rated Ally 159 | . . . . 31 31 . 41 . . . . 26 159 159 152 96 21 . 82 . . . Initial UFD Resources 54 | . . . . . . . 24 42 42 42 46 46 46 46 46 46 49 52 52 54 54 54 Total Orders . | . . . . . . . . . . . . . . . . . . . . . . . Ally Attacks 351 | . . . . 54 1 . 7 . . . . . 136 66 23 44 . . 20 . . . Total Damage 9380 | . . . . 853 . . 240 . . . . . 2681 2112 1031 1762 . . 701 . . . Kills 55 | . . . . 14 . . 1 . . . . . 17 10 4 8 . . 1 . . . Allies Corrupted . | . . . . . . . . . . . . . . . . . . . . . . . Allies Melted 1 | . . . . . . . . . . . . . 1 . . . . . . . . . Intel | -11 -10 -10 -9 -9 -9 -9 -6 -6 -6 -6 -5 -5 -5 -5 -5 -5 -4 -3 -3 -2 -2 -2 ------- Run | Yrd Mat Min Mat Sto Rec Scr Fac Low Low Dat Pro Fac Ext Cet Arc Hub Fac Res Tes Res Qua Sec Active Infowar (turns) 19187 | 1 881 347 1812 445 . . 2613 1046 706 . . 432 1373 730 169 456 360 3002 1296 1322 1054 1142 Optics 3057 | . . . . . . . 2142 11 . . . . . . . . . 416 488 . . . Sensors 13143 | . . . . . . . 2075 1046 706 . . 156 1373 77 . 290 360 2839 1043 984 1052 1142 Terrain 3772 | . . 148 1812 445 . . . . . . . . 20 . 18 456 360 129 . 384 . . Seismic 1081 | 1 881 199 . . . . . . . . . . . . . . . . . . . . Cloaking 1466 | . . . . . . . . . . . . . . . . . . 1005 461 . . . Jamming 11357 | . . . . . . . 343 . . . . 432 1295 730 169 454 351 2825 1241 1322 1053 1142 ECM 457 | . . . . . . . . . . . . . . . . 77 . 112 183 85 . . Robot Analysis Total 6 | . . . . . . 5 1 . . . . . . . . . . . . . . . Derelict Logs Recovered 6 | . . 1 . . . . . 1 3 . 1 . . . . . . . . . . . Drone Launches . | . . . . . . . . . . . . . . . . . . . . . . . Drone Recoveries . | . . . . . . . . . . . . . . . . . . . . . . . Exploration | -11 -10 -10 -9 -9 -9 -9 -6 -6 -6 -6 -5 -5 -5 -5 -5 -5 -4 -3 -3 -2 -2 -2 ------------- Run | Yrd Mat Min Mat Sto Rec Scr Fac Low Low Dat Pro Fac Ext Cet Arc Hub Fac Res Tes Res Qua Sec Turns Passed 25867 | 221 935 351 1930 1657 1357 1566 2827 1111 1142 92 613 984 1373 730 169 456 360 3058 1296 1322 1175 1142 Spaces Moved 14601 | 88 474 177 1004 791 703 970 1550 855 894 74 458 506 708 374 101 273 247 1913 741 694 522 484 Core 3 | 3 . . . . . . . . . . . . . . . . . . . . . . Treads 5884 | 85 474 177 1004 791 703 970 776 . . . . . . . . . . . . . 420 484 Legs 8714 | . . . . . . . 774 855 894 74 458 506 708 374 101 273 247 1913 741 694 102 . Wheels . | . . . . . . . . . . . . . . . . . . . . . . . Hover . | . . . . . . . . . . . . . . . . . . . . . . . Flight . | . . . . . . . . . . . . . . . . . . . . . . . Fastest Speed 50 | 50 160 160 160 160 160 160 120 120 120 125 125 120 120 120 120 120 120 109 108 116 120 155 Average Speed 136 | 156 160 160 160 160 160 160 141 120 121 125 125 134 141 120 120 120 120 114 113 117 148 155 Slowest Speed 260 | 160 160 160 160 160 160 160 240 120 125 125 125 200 190 260 120 190 120 120 120 260 155 160 Overloaded Moves . | . . . . . . . . . . . . . . . . . . . . . . . Propulsion Burnouts . | . . . . . . . . . . . . . . . . . . . . . . . Robots Hopped . | . . . . . . . . . . . . . . . . . . . . . . . Potential Cave-ins 8 | . . . . . . . . . . . . . . . . . . 3 3 . 2 . Cave-ins Triggered 1 | . . . . . . . . . . . . . . . . . . . 1 . . . Exploration Rate (%) 57 | 5 55 35 84 89 99 85 48 78 79 68 64 12 82 74 85 29 7 50 92 16 56 22 Regions Visited 22 Branch Regions 15 Pre-discovered Areas 18 | . 2 1 3 3 7 . 1 . . 1 . . . . . . . . . . . . Known Exits Taken 20 | . 1 1 1 1 1 . 1 1 1 1 1 1 1 1 1 1 1 1 1 1 1 . Unknown Exits Taken 2 | 1 . . . . . 1 . . . . . . . . . . . . . . . . Scrap Searched 17 | . . 2 . . . 3 . 5 3 . 4 . . . . . . . . . . . Spaces Dug 249 | . . 3 1 5 25 . 22 . 5 . 22 10 13 . . 9 1 34 31 34 7 27 Terrain Destroyed 868 | . . 55 60 27 64 . 31 . 5 . 37 54 13 . . 30 3 124 67 97 42 159 Melee 44 | . . . 1 5 . . 22 . 5 . 2 5 1 . . 3 . . . . . . Projectile 175 | . . . . . . . . . . . . . . . . 4 3 33 49 33 16 37 AOE 649 | . . 55 59 22 64 . 9 . . . 35 49 12 . . 23 . 91 18 64 26 122 Terrain Rammed . | . . . . . . . . . . . . . . . . . . . . . . . Walls Destroyed . | . . . . . . . . . . . . . . . . . . . . . . . Machines Disabled . | . . . . . . . . . . . . . . . . . . . . . . . Actions | -11 -10 -10 -9 -9 -9 -9 -6 -6 -6 -6 -5 -5 -5 -5 -5 -5 -4 -3 -3 -2 -2 -2 --------- Run | Yrd Mat Min Mat Sto Rec Scr Fac Low Low Dat Pro Fac Ext Cet Arc Hub Fac Res Tes Res Qua Sec Total 18903 | 127 562 214 1200 1035 896 991 2005 912 925 73 477 721 1061 624 138 366 299 2617 1065 1037 845 713 Wait 1914 | 8 20 2 20 105 156 2 182 15 2 . . 73 159 189 21 36 21 347 116 157 214 69 Move 14579 | 87 473 176 1003 790 702 969 1549 854 893 73 457 505 707 373 100 272 246 1912 740 693 521 484 Hop . | . . . . . . . . . . . . . . . . . . . . . . . Pick Up 248 | 3 11 3 33 11 1 3 28 7 3 . 1 12 9 7 2 7 7 45 15 22 9 9 Fast Attach 179 | 7 . . 3 8 . 1 35 . 3 . . 14 3 7 . . 3 32 32 13 7 11 Attach 122 | . . 5 4 1 1 . 21 1 4 . 3 10 6 1 . 7 5 12 10 22 5 4 Detach 50 | . . . . 1 . 3 11 1 . . 1 8 3 1 . 3 1 3 5 4 2 3 Swap 246 | . 9 7 26 17 8 2 13 4 1 . . 8 8 7 3 5 2 64 15 14 16 17 Drop 329 | 1 5 . 27 19 5 11 28 6 2 . . 14 12 16 1 5 3 86 36 19 19 14 Fire 732 | 21 43 20 71 72 20 . 5 . . . 2 3 2 . . 15 11 113 92 88 52 102 Melee 310 | . . . 8 7 . . 125 24 17 . 13 62 14 14 11 15 . . . . . . Ram 1 | . . . . . . . . . . . . . . . . . . . 1 . . . Kick 16 | . . . . . . . . . . . . 5 1 . . 1 . 3 1 5 . . Crush 14 | . 1 1 5 4 3 . . . . . . . . . . . . . . . . . Escape Stasis 6 | . . . . . . . 4 . . . . . . . . . . . 2 . . . Rewire 148 | . . . . . . . 4 . . . . 7 137 . . . . . . . . . Trap . | . . . . . . . . . . . . . . . . . . . . . . . Miscellaneous 9 | . . . . . . . . . . . . . . 9 . . . . . . . . Route ------- -11/Scrapyard -10/Materials (discovered 5 exits: *Mat x3 / *Min / [*Sub]) -10/Mines -9/Materials (discovered 6 exits: *Mat x3 / *Min / *Sto x2) -9/Storage (discovered 2 exits: *Mat / *Rec) -9/Recycling (discovered 2 exits: *Fac / *Scr) -9/Scraptown (discovered 2 exits: *Fac x2) -6/Factory (discovered 3 exits: *Fac / *Low x2) -6/Lower Caves -6/Lower Caves (discovered 2 exits: *Fac / *Dat) -6/Data Miner -5/Proximity Caves -5/Factory (discovered 7 exits: Fac x3 / *Upp x2 / *Ext x2) -5/Extension (discovered 3 exits: *Fac x2 / *Cet) -5/Cetus (discovered 2 exits: *Fac / *Arc) -5/Archives (discovered 2 exits: *Hub x2) -5/Hub_04(d) -4/Factory -3/Research (discovered 2 exits: *Res / *Tes) -3/Testing -2/Research -2/Quarantine (discovered 3 exits: Acc / *Sec / [*Frg]) -2/Section 7 History --------- Turn | Location | Event 4 | -11/Scrapyard | Discovered new exit (range 16) 222 | -11/Scrapyard | Entered Materials 347 | -10/Materials | Discovered new exit (range 15) 350 | -10/Materials | Build established: Mutant 682 | -10/Materials | Discovered new exit (range 16) 777 | -10/Materials | Learned Storage interactive machine intel 832 | -10/Materials | Loaded intel: 1 repair station location 844 | -10/Materials | Discovered new exit (range 12) 878 | -10/Materials | Identified exit to Materials 944 | -10/Materials | Learned 2 Storage zone layouts 960 | -10/Materials | Identified exit to Mines 994 | -10/Materials | Learned location of 1 exit from Storage 1032 | -10/Materials | Learned 4 Recycling zone layouts 1081 | -10/Materials | Learned Storage emergency access door positions 1157 | -10/Materials | Entered Mines 1310 | -10/Mines | Assembled infested the area 1315 | -10/Mines | Assisted by a Guerilla fighting off Assembled 1337 | -10/Mines | Core integrity fell below 50% 1378 | -10/Mines | Destroyed 19 combat bots 1387 | -10/Mines | Lost 5 parts (1p2n1u1w) 1459 | -10/Mines | A weapon hastily lodged in a ceiling crevice suddenly fell to the ground 1470 | -10/Mines | Learned location of Mines (-8) 1494 | -10/Mines | Discovered exit to Materials (range 4) 1508 | -10/Mines | Entered Materials 1508 | -9/Materials | Evolved 2 slots: Propulsion x1, Utility x1 2037 | -9/Materials | Build established: Scavenger-Mutant 2088 | -9/Materials | Destroyed 8 combat bots 2170 | -9/Materials | Discovered new exit (range 16) 2455 | -9/Materials | Discovered new exit (range 12) 2708 | -9/Materials | First assault squad dispatched 2872 | -9/Materials | Discovered new exit (range 13) 3009 | -9/Materials | Learned 2 Storage zone layouts 3022 | -9/Materials | Identified exit to Storage 3062 | -9/Materials | Learned Recycling recycling unit intel 3073 | -9/Materials | Identified exit to Mines 3106 | -9/Materials | Identified exit to Materials 3165 | -9/Materials | Learned location of 2 exits from Materials 3181 | -9/Materials | Loaded intel: 2 recycling unit locations 3206 | -9/Materials | Learned Materials recycling unit intel 3241 | -9/Materials | Learned Storage trap positions 3287 | -9/Materials | Learned Storage emergency access door positions 3438 | -9/Materials | Entered Storage 3440 | -9/Storage | Identified exit to Recycling 3441 | -9/Storage | Loaded intel: 18 trap records 3443 | -9/Storage | Loaded intel: 22 interactive machine locations 3983 | -9/Storage | Repaired Lgt. Treads 4004 | -9/Storage | Repaired Pulse Rifle 4015 | -9/Storage | Core integrity fell below 50% 4204 | -9/Storage | Met a pair of Derelict thieves 4335 | -9/Storage | Garrison activated, responded to threat 4693 | -9/Storage | Learned Storage emergency access door positions 4742 | -9/Storage | Learned location of 1 exit from Recycling 4782 | -9/Storage | Learned location of 1 exit from Storage 4845 | -9/Storage | Learned location of 1 exit from Storage 4866 | -9/Storage | Learned Storage emergency access door positions 4883 | -9/Storage | Used back door to open Recycling access 4897 | -9/Storage | Learned Storage emergency access door positions 5095 | -9/Storage | Entered Recycling 5095 | -9/Recycling | Accompanied by 1 ally 5096 | -9/Recycling | Identified exit to Factory 5098 | -9/Recycling | Loaded intel: 6 recycling unit locations 5739 | -9/Recycling | Scanned before Scraplab entrance 5947 | -9/Recycling | Identified exit to Scraptown 6008 | -9/Recycling | Learned Storage security intel 6104 | -9/Recycling | Learned Materials emergency access door positions 6139 | -9/Recycling | Learned 2 Materials zone layouts 6183 | -9/Recycling | Learned Storage emergency access door positions 6209 | -9/Recycling | Learned 2 Materials zone layouts 6220 | -9/Recycling | Core integrity fell below 20% 6243 | -9/Recycling | Learned 2 Storage zone layouts 6286 | -9/Recycling | Learned location of 1 exit from Storage 6437 | -9/Recycling | Entered Scraplab 6440 | -9/Recycling | Build established: Mutant 6452 | -9/Recycling | Entered Scraptown 6817 | -9/Scraptown | Heard Great Nut preacher, LISTEN AND RECITE! 6826 | -9/Scraptown | Discovered new exit (range 13) 6921 | -9/Scraptown | Visited CR-KLE's Repair Center 6946 | -9/Scraptown | Visited Spacefarers 7030 | -9/Scraptown | Visited Cave Peace 7081 | -9/Scraptown | CR-KLE repaired 6 parts 7105 | -9/Scraptown | Visited TADAMA 7116 | -9/Scraptown | Visited Fellowship of the Rings 7148 | -9/Scraptown | Visited SPCMW 7175 | -9/Scraptown | Visited UFD Registry 7175 | -9/Scraptown | Registered with UFD as "Wireripper" 7346 | -9/Scraptown | Visited Science Guys 7404 | -9/Scraptown | Visited Curators Association 7474 | -9/Scraptown | Visited Research Penetration Think Tank 7606 | -9/Scraptown | Visited Infowarlord's Domain 7614 | -9/Scraptown | Found Exp. Sensor Array 7639 | -9/Scraptown | Visited Scrap Suit Storage 7693 | -9/Scraptown | Visited Analyses Database 7743 | -9/Scraptown | Visited Science Testing Area 7770 | -9/Scraptown | Visited Sword Containment 7796 | -9/Scraptown | Visited LU-1G1's Boring Crew 7846 | -9/Scraptown | Found Prototype Slashing Weapon 7846 | -9/Scraptown | Identified Companion Sword 7932 | -9/Scraptown | Met Optimus 7932 | -9/Scraptown | Accepted into 0bPrime 8015 | -9/Scraptown | Discovered new exit (range 3) 8018 | -9/Scraptown | Entered Factory 8018 | -6/Factory | Evolved 6 slots: Power x1, Propulsion x1, Utility x4 8410 | -6/Factory | Lost 4 parts (2n2u) 8855 | -6/Factory | Loaded intel: 8 recycling unit locations 8951 | -6/Factory | Build established: Scavenger-Assassin 9033 | -6/Factory | Lost 4 parts (1p3n) 9104 | -6/Factory | Discovered new exit (range 5) 9134 | -6/Factory | Identified exit to Factory 9579 | -6/Factory | Identified exit to Lower Caves 10102 | -6/Factory | Learned location of Protoforge (-2) 10393 | -6/Factory | Build established: Assassin 10485 | -6/Factory | Core integrity fell below 50% 10525 | -6/Factory | Lost 5 parts (2p3n) 10613 | -6/Factory | Watched by a mysterious "MATRIX" hacker. 10845 | -6/Factory | Entered Lower Caves 11158 | -6/Lower Caves | Build established: Mutant 11613 | -6/Lower Caves | Attracted the attention of an 0b10 checkpoint 11666 | -6/Lower Caves | Learned 8 Factory zone layouts 11763 | -6/Lower Caves | Discovered new exit (range 8) 11781 | -6/Lower Caves | Identified exit to Lower Caves 11956 | -6/Lower Caves | Entered another Lower Caves area 12004 | -6/Lower Caves | Discovered exit to Factory (range 14) 12128 | -6/Lower Caves | Learned location of 1 exit from Factory 12215 | -6/Lower Caves | Learned location of 1 exit from Factory 12230 | -6/Lower Caves | Learned 8 Factory zone layouts 12652 | -6/Lower Caves | Attracted the attention of an 0b10 checkpoint 13067 | -6/Lower Caves | Discovered new exit (range 8) 13074 | -6/Lower Caves | Identified exit to Data Miner 13098 | -6/Lower Caves | Entered Data Miner 13098 | -6/Data Miner | Discovered new exit (range 6) 13103 | -6/Data Miner | Identified exit to Proximity Caves 13122 | -6/Data Miner | Met Data Miner 13143 | -6/Data Miner | Learned location of Section 7 (-2) 13143 | -6/Data Miner | Acquired the access code to Warlord's prototype stash 13161 | -6/Data Miner | Received God Mode back door access code from Data Miner 13190 | -6/Data Miner | Entered Proximity Caves 13191 | -5/Proximity Caves | Build established: Scavenger-Mutant 13233 | -5/Proximity Caves | Spotted B-75 Beast 13587 | -5/Proximity Caves | Learned location of 2 exits from Factory 13600 | -5/Proximity Caves | Lost 3 parts (1p1n1u) 13673 | -5/Proximity Caves | Discovered exit to Factory (range 12) 13803 | -5/Proximity Caves | Entered Factory 13803 | -5/Factory | Evolved 2 slots: Utility x2 13804 | -5/Factory | Identified exit to Extension 13804 | -5/Factory | Identified exit to Upper Caves 13805 | -5/Factory | Identified exit to Factory 14105 | -5/Factory | Lost 5 parts (2p2n1u) 14787 | -5/Factory | Entered Extension 14851 | -5/Extension | Rescued a captive Derelict 14891 | -5/Extension | Rescued a captive Derelict 15003 | -5/Extension | Rescued a captive Derelict 15004 | -5/Extension | Rescued a captive Derelict 15081 | -5/Extension | Rescued a captive Derelict 15129 | -5/Extension | Rescued A7 15131 | -5/Extension | Attached CPS modules to A7. 15587 | -5/Extension | Spotted B-75 Beast 15599 | -5/Extension | Spotted B-75 Beast 15603 | -5/Extension | Allies destroyed B-75 Beast 15618 | -5/Extension | Allies destroyed B-75 Beast 15638 | -5/Extension | Lost 3 allies 15673 | -5/Extension | Discovered exit to Factory (range 4) 15759 | -5/Extension | Rescued a captive Derelict 15842 | -5/Extension | System corruption reached 10% 15848 | -5/Extension | Rescued a captive Derelict 15848 | -5/Extension | Rescued a captive Derelict 16006 | -5/Extension | Rescued a captive Derelict 16019 | -5/Extension | Rescued a captive Derelict 16105 | -5/Extension | Discovered exit to Factory (range 10) 16114 | -5/Extension | Discovered new exit (range 6) 16123 | -5/Extension | Identified exit to Cetus 16160 | -5/Extension | Entered Cetus 16160 | -5/Cetus | Accompanied by 13 allies (A7) 16165 | -5/Cetus | Acquired a Cetus Manufacturing Module code from A7 16217 | -5/Cetus | Spotted Cetus Guard 16217 | -5/Cetus | Spotted Cetus Guard 16219 | -5/Cetus | Spotted Cetus Guard 16220 | -5/Cetus | Spotted Cetus Guard 16233 | -5/Cetus | Allies destroyed Cetus Guard 16239 | -5/Cetus | Allies destroyed Cetus Guard 16247 | -5/Cetus | Destroyed Cetus Guard 16249 | -5/Cetus | Allies destroyed Cetus Guard 16270 | -5/Cetus | Lost 4 allies 16359 | -5/Cetus | Started Cetus Manufacturing Module 16384 | -5/Cetus | Manufactured an Enhanced Grunt 16396 | -5/Cetus | Escorted A7 to Cetus Mainframe 16409 | -5/Cetus | Manufactured an Enhanced Grunt 16434 | -5/Cetus | Manufactured an Enhanced Grunt 16459 | -5/Cetus | Manufactured an Enhanced Grunt 16484 | -5/Cetus | Manufactured an Enhanced Grunt 16513 | -5/Cetus | Discovered new exit (range 16) 16530 | -5/Cetus | Identified exit to Archives 16564 | -5/Cetus | Spotted Cetus Guard 16564 | -5/Cetus | Spotted Cetus Guard 16567 | -5/Cetus | Spotted Cetus Guard 16568 | -5/Cetus | Spotted Cetus Guard 16581 | -5/Cetus | Allies destroyed Cetus Guard 16583 | -5/Cetus | Allies destroyed Cetus Guard 16583 | -5/Cetus | Discovered exit to Factory (range 16) 16591 | -5/Cetus | Allies destroyed Cetus Guard 16594 | -5/Cetus | Allies destroyed Cetus Guard 16595 | -5/Cetus | Met Revision 17 16733 | -5/Cetus | Build established: Commander-Mutant 16890 | -5/Cetus | Entered Archives 16890 | -5/Archives | Accompanied by 11 allies (A7) 16895 | -5/Archives | Received a hacking code to weaken MAIN.C 16927 | -5/Archives | Discovered new exit (range 15) 16945 | -5/Archives | Discovered new exit (range 16) 16961 | -5/Archives | Identified exit to Hub_04(d) 17059 | -5/Archives | Entered Hub_04(d) 17059 | -5/Hub_04(d) | Accompanied by 8 allies 17253 | -5/Hub_04(d) | Spotted B-75 Beast 17454 | -5/Hub_04(d) | Discovered exit to Factory (range 8) 17469 | -5/Hub_04(d) | Network Hub disabled 17515 | -5/Hub_04(d) | Entered Factory 17515 | -4/Factory | Accompanied by 1 ally 17515 | -4/Factory | Evolved 2 slots: Propulsion x1, Utility x1 17685 | -4/Factory | Build established: Scavenger-Mutant 17778 | -4/Factory | Discovered new exit (range 18) 17803 | -4/Factory | Identified exit to Research 17875 | -4/Factory | Entered Research 17875 | -3/Research | Evolved 2 slots: Utility x2 18046 | -3/Research | Garrison activated, responded to threat 18075 | -3/Research | Revision forces began assault on 0b10 18083 | -3/Research | Met up with Revision 17++ 18400 | -3/Research | Spotted B-86 Titan 18575 | -3/Research | Research terminal network offline 18662 | -3/Research | Spotted Striker 18663 | -3/Research | Spotted Striker 18673 | -3/Research | Destroyed Striker 18776 | -3/Research | Spotted Striker 18776 | -3/Research | Spotted Striker 18957 | -3/Research | Discovered new exit (range 14) 18980 | -3/Research | Identified exit to Research 19296 | -3/Research | Repaired Centrium Light Armor Plating 19359 | -3/Research | Repaired Adv. Transmission Jammer 19468 | -3/Research | Central database locked down 19937 | -3/Research | Fabricated Exp. Core Analyzer (x1) 20006 | -3/Research | Spotted Striker 20011 | -3/Research | Spotted Striker 20028 | -3/Research | Destroyed Striker 20034 | -3/Research | Destroyed Striker 20066 | -3/Research | Spotted Striker 20085 | -3/Research | Destroyed Striker 20106 | -3/Research | Destroyed 13 combat bots 20107 | -3/Research | Lost 4 allies 20136 | -3/Research | Spotted B-86 Titan 20454 | -3/Research | Spotted Striker 20455 | -3/Research | Spotted Executioner 20479 | -3/Research | Destroyed Striker 20492 | -3/Research | Destroyed Executioner 20669 | -3/Research | Discovered new exit (range 21) 20712 | -3/Research | Spotted Striker 20757 | -3/Research | Build established: Scavenger-Skirmisher 20848 | -3/Research | Fabricated Lgt. Regenerative Plating (x1) 20906 | -3/Research | Identified exit to Testing 20924 | -3/Research | Found Unknown Launcher 20924 | -3/Research | Identified Gamma Bomb Array 20933 | -3/Research | Entered Testing 21099 | -3/Testing | Found Prototype Hackware 21099 | -3/Testing | Identified Exp. System Shield 21147 | -3/Testing | Found Prototype Energy Cannon 21147 | -3/Testing | Identified Hpw. Disruptor Cannon 21168 | -3/Testing | Spotted Striker 21170 | -3/Testing | Spotted Striker 21281 | -3/Testing | Central database locked down 21341 | -3/Testing | Found Prototype Device 21341 | -3/Testing | Identified AEGIS Remote Shield 21421 | -3/Testing | Crushed by falling debris 21421 | -3/Testing | System corruption reached 10% 21500 | -3/Testing | Lost 4 parts (1p3u) 21601 | -3/Testing | Lost 3 parts (1p2u) 21713 | -3/Testing | Build established: Scavenger-Mutant 21737 | -3/Testing | Found Prototype Processor 21737 | -3/Testing | Identified Exp. Targeting Computer 21896 | -3/Testing | Discovered exit to Research (range 11) 21910 | -3/Testing | Found Prototype Energy Cannon 21910 | -3/Testing | Identified Null Cannon 22229 | -3/Testing | Entered Research 22229 | -2/Research | Evolved 2 slots: Power x1, Utility x1 22622 | -2/Research | Build established: Scavenger-Skirmisher 22626 | -2/Research | Targeted by mysterious "MATRIX" hacker. 22736 | -2/Research | Lost 7 parts (2p1n2u2w) 22962 | -2/Research | Build established: Scavenger-Mutant 23046 | -2/Research | System corruption reached 10% 23084 | -2/Research | Lost 8 parts (2p1n5u) 23388 | -2/Research | Identified exit to Quarantine 23551 | -2/Research | Entered Quarantine 23570 | -2/Quarantine | Found Alien Reactor 23676 | -2/Quarantine | Found Alien Artifact 23676 | -2/Quarantine | Identified Phase Redirector 23786 | -2/Quarantine | Found Alien Artifact 23786 | -2/Quarantine | Identified Phase Armor 24020 | -2/Quarantine | Identified exit to Access 24169 | -2/Quarantine | Cryocooling Duct disabled 24184 | -2/Quarantine | Ambient heat levels rising (+20) 24184 | -2/Quarantine | Non-combat units ordered to evacuate 24252 | -2/Quarantine | Cryocooling Duct disabled 24267 | -2/Quarantine | Ambient heat levels rising (+20) 24267 | -2/Quarantine | Combat units ordered to evacuate 24342 | -2/Quarantine | Cryocooling Duct disabled 24357 | -2/Quarantine | Ambient heat levels rising (+20) 24367 | -2/Quarantine | Quarantine Guard activated 24546 | -2/Quarantine | Spotted Fortress 24590 | -2/Quarantine | Destroyed Fortress 24619 | -2/Quarantine | Lost 3 parts (1p2u) 24720 | -2/Quarantine | Discovered new exit (range 5) 24720 | -2/Quarantine | Discovered new exit (range 6) 24720 | -2/Quarantine | Spotted Quarantine Guard 24720 | -2/Quarantine | Spotted Quarantine Guard 24724 | -2/Quarantine | Identified exit to Section 7 24726 | -2/Quarantine | Entered Section 7 24787 | -2/Section 7 | Found Alien Artifact 24787 | -2/Section 7 | Identified Integrated Reactor 24787 | -2/Section 7 | Installed Integrated Reactor, increased core energy generation (+10) 24859 | -2/Section 7 | Found Alien Artifact 24859 | -2/Section 7 | Identified Integrated Dissipator 24859 | -2/Section 7 | Installed Integrated Dissipator, increased core heat dissipation (+20) 25048 | -2/Section 7 | Core integrity fell below 50% 25187 | -2/Section 7 | Destroyed 8 combat bots 25262 | -2/Section 7 | Found Unknown Protection 25262 | -2/Section 7 | Identified Hvy. Insulated Plating 25456 | -2/Section 7 | Found Fusion Bomb Launcher 25578 | -2/Section 7 | Spotted S7 Guard 25605 | -2/Section 7 | Found Alien Artifact 25621 | -2/Section 7 | Identified Integrated Thermoelectric Network 25621 | -2/Section 7 | Installed Integrated Thermoelectric Network, gained heat-energy exchange potential 25625 | -2/Section 7 | Scanned by Researcher 25633 | -2/Section 7 | Core integrity fell below 20% 25674 | -2/Section 7 | Destroyed S7 Guard 25726 | -2/Section 7 | First assault squad dispatched 25731 | -2/Section 7 | Destroyed 9 combat bots 25792 | -2/Section 7 | Destroyed 8 combat bots 25800 | -2/Section 7 | Lost 3 parts (1p2u) 25842 | -2/Section 7 | Spotted S7 Guard 25854 | -2/Section 7 | Spotted Alpha 7 25868 | -2/Section 7 | Destroyed by H-88 Terminator with Heavy Machine Gun Last Messages --------------- 25848_ U-05 Engineer builds a Wall. 25853_ Penetrated by Slug. 25854_ U-05 Engineer lays Concrete. 25855_ U-05 Engineer builds a Wall. 25856_ Slug penetrates Wall. 25860_ System corrupted: FCS attempts to trigger Enh. Nova Cannon. 25860_ System corrupted: Enh. Nova Cannon misfires. 25860_ Slug penetrates Wall. 25860_ Penetrated by Slug. 25860_ Slug penetrates Wall. 25862_ Penetrated by Slug. 25863_ Slug penetrates Wall. 25865_ Penetrated by Slug. 25866_ Slug penetrates Wall. 25867_ Wall collapses. 25867_ Activated siege mode. 25868_ Slug penetrates Wall. 25868_ Penetrated by Slug. Map ----- +----------------------------------------------------+ | ?????????????????????????????????????????????????? | | ?????????????????????????????????????????????????? | | ?????????????????????????????????????????????????? | | ?????????????????????????????????????????????????? | | ?????????????????????????????????????????????????? | | ?????????????????????????????????????????????????? | | ?????????????????????????????????????????????????? | | ?????????????????????????????????????????????????? | | ??????????????????????k??????????????????????????? | | ?????????????????????#???????????????????????????? | | ?????????????????????# ??????????????????????????? | | ?????????????????????# ??????????????????????????? | | ?????????????????????# ??????????????????????????? | | ?????????????????????# ??????????????????????????? | | ?????????????????????# ??????????????????????????? | | ?????????????k???????# #######????????7??????????? | | ?????????????????????# ????????????????????? | | ?????????????????????+ R ????????????????????? | | ?????????????????????# ?????????????????????? | | ?????????????????????# ????R?R???????????????? | | ????????o????????????# 7h##???##????????????????? | | ?????????????????????# ; ?""""#???????????????? | | ?????????????????????# ; " "#???????????????? | | ?????????????????????# ; ""#???????????????? | | ??????????????????C??# # """#???????????????? | | ?????????????????????# @#?? "!"#???????????????? | | ?????????????????????# #????""#???????????????? | | ?????????????????????# #??????#???????????????? | | ?????????????????????# ;??????????????????????? | | ?????????????????????# #??????????????????????? | | ?????????????????????# ##########?????????????? | | ?????????????????????# # #?????????????? | | ?????????????????????# # #?????????????? | | ?????????????????????# # #?????????????? | | ?????????????????????# # #?????????????? | | ?????????????????????# # ^ #?????????????? | | ?????????????#####+### # #?????????????? | | ??????????? + #?????????????? | | ?????????? # #?????????????? | | ??????????? + #?????????????? | | ??????????? # #?????????????? | | ????????????######+###### #?????????????? | | ??????????????### =!! #u #?????????????? | | ??????????????# [=% ]#?????????????? | | ?????######+### #!! [ #?????????????? | | ######" % % % # #?????????????? | | # = # = % % # # #?????????????? | | # ## % # #?????????????? | | # ## # ## # #?????????????? | | [+ # # # ##### #?????????????? | +----------------------------------------------------+ Best States ------------- Heat Dissipation 145 Energy Generation 81 Energy Capacity 850 Matter Stores 300 Matter Capacity 300 Sight Range 23 Robot Scan Range 20 Terrain Scan Range 20 Terrain Scan Density 135 ECM Strength 2 Jamming Range 16 Cloak Strength 3 Power Amplification 20 Armor Coverage 1200 Resistance: KI 30 Resistance: EM 30 Melee Speed Boost 20 Phase Shifting 15 Evasion (%) 84 Targeting Accuracy 12 Melee Accuracy 16 Core Analysis 8 Recoil Reduction 5 Offensive Hacking 12 Defensive Hacking 16 Item Schematics ----------------- Hcp. Storage Unit | -9/Materials | Hacked Lgt. Armor Plating | -9/Recycling | Hacked Salvage Targeting Computer | -9/Recycling | Hacked Adv. Salvage Targeting Computer | -6/Factory | Hacked Combat Drone Bay | -6/Data Miner | Free Lgt. Regenerative Plating | -6/Data Miner | Free Cld. Gravmag System | -6/Data Miner | Free Prc. Energy Filter | -6/Data Miner | Free Imp. Antigrav System | -6/Data Miner | Free Tiamat Missile Launcher | -6/Data Miner | Free Imp. Point Defense System | -6/Data Miner | Free Railgun | -6/Data Miner | Free Adv. Component Analysis Suite | -6/Data Miner | Free Hvy. Gatling Laser | -3/Testing | Archive Hellfire Missile Launcher | -3/Testing | Archive Hvy. Tesla Rifle | -3/Testing | Archive Imp. Lightning Gun | -3/Testing | Archive Diametric Drive | -3/Testing | Archive Adv. ECM Suite | -3/Testing | Scanalyzed Adv. Coolant Injector | -3/Testing | Scanalyzed Adv. Plasma Rifle | -2/Quarantine | Archive Lgt. Antimatter Cannon | -2/Quarantine | Archive Imp. Matter Neutralizer | -2/Section 7 | Archive Plasma Lance | -2/Section 7 | Archive Robot Schematics ------------------ Y-64 Sentinel | -6/Data Miner | Free B-60 Warrior | -6/Data Miner | Free L-41 Fighter | -6/Data Miner | Free A-27 Freighter | -6/Data Miner | Free A-15 Conveyor | -6/Data Miner | Free R-10 Processor | -6/Data Miner | Free B-74 Champion | -3/Testing | Archive Y-72 Warden | -3/Testing | Archive Fabricated ------------ Exp. Core Analyzer | x1 | -3/Research | Preloaded Lgt. Regenerative Plating | x1 | -3/Research Repaired ---------- Lgt. Treads | 19% | -9/Storage Pulse Rifle | 47% | -9/Storage Centrium Light Armor Plating | 30% | -3/Research Adv. Transmission Jammer | 30% | -3/Research Studied --------- Rocket Launcher | -9/Materials | Hacked Lgt. Assault Rifle | -9/Materials | Hacked Med. Laser | -9/Materials | Hacked Sml. Laser | -9/Materials | Hacked Biometal Leg | -3/Research | Hacked Flexi-carbon Leg | -3/Research | Hacked Carbon-fiber Leg | -3/Research | Hacked Nova Cannon | -3/Research | Hacked Railgun | -3/Research | Hacked Centrium Leg | -3/Testing | Hacked Imp. Thunder Leg | -3/Testing | Hacked Quantum Reactor | -2/Section 7 | Hacked Alien Tech Used ----------------- Phase Redirector Phase Armor Integrated Reactor Integrated Dissipator Integrated Thermoelectric Network Achievements -------------- Ponder That! Challenges ------------ None Game ------ Seed EnhancedExplosiveTube Manual? 0 Play Time 03:24:33 Cumulative 340.7 hours Start 2026.02.01 @ 13:42:43 End 2026.02.01 @ 17:07:33 Sessions 1 Manual Loads 0 Difficulty Rogue Special Mode None Game No. 221 Rogue 221 Adventurer 0 Explorer 0 Win Type - Total 13 Types 9/1/1/1/0/0/0/1/0/0 Lore% 93 Gallery% 81 Achievement% 68 Wizard Run 0 Options --------- Layout 1 ASCII 0 Keyboard 0 Movement Mouse Keybinds 0 Fullscreen 2 Font 32/SmallcapsGlow Map View 50x35 Zoom Use 0% Tactical HUD 1 Map Filters NONE Filters NONE Steam 1 RUN: 284d812d-b415-41d9-9dd4-2ddab2e88b2a